bitfinex/quotes_SOLUSD_20241209
["timestamp","ask_amount","ask_price","bid_price","bid_amount"]
[1733740494522,0.66017683,227.46,227.36,23.902374]
[1733740494732,6.5605,227.5,227.4,0.12549]
[1733740494920,6.5605,227.5,227.42,0.12549]
[1733740495622,6.5605,227.5,227.44,0.12549]
[1733740496342,0.66017683,227.49,227.43,23.776884]
[1733740497222,6.5605,227.5,227.43,23.776884]
[1733740497836,6.5605,227.5,227.44,0.12549]
[1733740501554,6.5605,227.5,227.46,0.12549]
[1733740502617,6.0148,227.57,227.46,13.80011087]
[1733740502815,6.0148,227.57,227.49,23.776884]
[1733740503039,6.0148,227.57,227.52,0.12549]
[1733740503210,6.0148,227.57,227.51,23.776884]
[1733740503656,0.66017683,227.56,227.47,0.12549]
[1733740503843,0.66017683,227.56,227.34,12.76430878]
[1733740504146,1.6195,227.53,227.39,0.25098]
[1733740504355,0.66017683,227.52,227.41,0.12549]
[1733740505244,1.6195,227.53,227.44,0.12549]
[1733740505413,1.6195,227.53,227.46,0.12549]
[1733740505754,6.0148,227.57,227.48,0.12549]
[1733740505948,6.0148,227.57,227.5,0.12549]
[1733740506312,6.0148,227.57,227.52,0.12549]
[1733740512853,6.0148,227.57,227.55,0.12549]
[1733740514223,20.0,227.66,227.55,0.12549]
[1733740514423,0.66017683,227.65,227.57,0.12549]
[1733740514651,20.0,227.66,227.57,0.12549]
[1733740514828,20.0,227.66,227.59,0.12549]
[1733740515027,0.66017683,227.68,227.59,0.12549]
[1733740516363,20.0,227.66,227.59,0.12549]
[1733740516523,0.66017683,227.68,227.59,0.12549]
[1733740517722,20.0,227.66,227.59,0.12549]
[1733740517927,0.66017683,227.65,227.59,0.12549]
[1733740520047,0.66017683,227.65,227.58,23.776884]
[1733740520557,0.66017683,227.65,227.5,0.65900178]
[1733740520769,0.66017683,227.65,227.51,23.776884]
[1733740521055,1.5712,227.6,227.45,0.65911632]
[1733740521240,0.66017683,227.59,227.45,0.65911632]
[1733740522456,0.66017683,227.59,227.46,0.25098]
[1733740522660,1.5712,227.6,227.48,0.25098]
[1733740522974,1.5712,227.6,227.5,0.25098]
[1733740523140,1.5712,227.6,227.52,24.153354]
[1733740523343,1.5712,227.6,227.54,24.027864]
[1733740523662,20.0,227.61,227.56,24.027864]
[1733740524872,0.66017683,227.6,227.52,23.902374]
[1733740525055,0.66017683,227.6,227.53,0.12549]
[1733740526547,0.66017683,227.6,227.46,0.65915378]
[1733740526747,0.66017683,227.6,227.47,0.25098]
[1733740527243,0.66017683,227.6,227.49,0.12549]
[1733740527885,1.6101,227.59,227.5,0.12549]
[1733740528186,0.66017683,227.58,227.5,0.12549]
[1733740528372,0.66017683,227.58,227.45,0.65919652]
[1733740528373,6.1184,227.57,227.45,0.65919652]
[1733740528575,20.0,227.54,227.4,0.65929542]
[1733740528877,0.66017683,227.53,227.41,0.25098]
[1733740529237,0.66017683,227.53,227.4,0.65929542]
[1733740529694,1.6101,227.52,227.38,0.25098]
[1733740529871,0.66017683,227.51,227.39,0.65945235]
[1733740530474,20.0,227.47,227.35,0.65949366]
[1733740530695,0.66017683,227.46,227.35,0.65949366]
[1733740531200,20.0,227.47,227.36,0.25098]
[1733740531411,20.0,227.47,227.38,0.25098]
[1733740531563,20.0,227.47,227.4,24.027864]
[1733740531898,6.5785,227.5,227.42,24.027864]
[1733740532066,6.5785,227.5,227.44,24.027864]
[1733740532470,0.66017683,227.59,227.48,0.12549]
[1733740532471,6.3267,227.56,227.48,0.12549]
[1733740532687,6.3267,227.56,227.5,0.37647]
[1733740532886,6.3267,227.56,227.53,0.12549]
[1733740533909,6.3267,227.56,227.52,23.902374]
[1733740534205,6.3267,227.56,227.53,0.12549]
[1733740536284,6.3267,227.56,227.46,0.65915702]
[1733740536488,0.66017683,227.55,227.45,23.902374]
[1733740536711,0.66017683,227.55,227.46,0.25098]
[1733740536906,0.66017683,227.55,227.44,0.65925774]
[1733740537096,6.3267,227.56,227.45,0.25098]
[1733740537302,6.3267,227.56,227.47,0.12549]
[1733740538011,0.66017683,227.55,227.47,24.027864]
[1733740538185,0.66017683,227.55,227.44,0.65923224]
[1733740538385,0.66017683,227.55,227.42,20.0]
[1733740538620,0.66017683,227.55,227.43,0.65933335]
[1733740538989,20.0,227.53,227.4,20.65933645]
[1733740539191,20.0,227.53,227.4,0.65933645]
[1733740539427,0.66017683,227.52,227.41,0.25098]
[1733740539600,20.0,227.53,227.43,0.12549]
[1733740540483,0.66017683,227.52,227.43,24.027864]
[1733740540983,0.66017683,227.52,227.43,0.25098]
[1733740544594,6.3267,227.56,227.46,0.12549]
[1733740544806,6.3267,227.56,227.48,0.25098]
[1733740545031,6.3267,227.56,227.47,24.027864]
[1733740545032,6.3267,227.56,227.51,0.25098]
[1733740545219,6.3267,227.56,227.53,0.25098]
[1733740550634,6.3267,227.56,227.42,21.08474547]
[1733740550804,0.66017683,227.55,227.42,0.65914651]
[1733740551005,6.3267,227.56,227.43,20.67657896]
[1733740551204,6.3267,227.56,227.45,0.25098]
[1733740551407,6.3267,227.56,227.47,0.12549]
[1733740551635,6.3267,227.56,227.49,0.12549]
[1733740551803,6.3267,227.56,227.49,24.027864]
[1733740552840,0.66017683,227.55,227.49,23.776884]
[1733740553009,0.66017683,227.55,227.45,0.6593291]
[1733740553211,6.3267,227.56,227.47,0.12549]
[1733740553417,6.3267,227.56,227.49,0.12549]
[1733740554028,6.3267,227.56,227.49,0.25098]
[1733740554831,0.66017683,227.55,227.49,0.12549]
[1733740555337,0.66017683,227.55,227.48,23.776884]
[1733740555513,0.66017683,227.55,227.43,0.12549]
[1733740555514,20.0,227.53,227.43,0.12549]
[1733740555714,0.66017683,227.52,227.41,0.65929479]
[1733740556118,0.66017683,227.52,227.42,0.12549]
[1733740556531,0.66017683,227.52,227.42,0.25098]
[1733740556932,0.66017683,227.52,227.43,0.25098]
[1733740557736,0.66017683,227.52,227.42,0.12549]
[1733740558930,0.66017683,227.52,227.42,0.37647]
[1733740559643,0.66017683,227.52,227.44,0.25098]
[1733740562125,0.66017683,227.52,227.45,0.12549]
[1733740562445,20.0,227.53,227.48,0.12549]
[1733740563465,20.0,227.53,227.46,24.027864]
[1733740563846,0.66017683,227.52,227.46,23.902374]
[1733740564046,20.0,227.53,227.46,23.902374]
[1733740564549,20.0,227.53,227.45,0.12549]
[1733740564723,0.66017683,227.52,227.45,0.12549]
[1733740565321,20.0,227.53,227.45,0.12549]
[1733740565526,0.66017683,227.52,227.45,0.12549]
[1733740566931,20.0,227.53,227.45,0.12549]
[1733740567268,20.0,227.53,227.48,0.12549]
[1733740567437,6.3267,227.56,227.48,0.12549]
[1733740567760,6.3267,227.56,227.48,23.902374]
[1733740569049,6.3267,227.56,227.47,0.25098]
[1733740569249,0.66017683,227.55,227.47,0.25098]
[1733740569456,20.0,227.53,227.47,0.25098]
[1733740570167,20.0,227.53,227.46,0.25098]
[1733740571364,20.0,227.53,227.45,0.12549]
[1733740571365,0.66017683,227.52,227.45,0.12549]
[1733740571574,20.0,227.53,227.45,0.12549]
[1733740572571,0.66017683,227.52,227.45,0.12549]
[1733740574363,20.0,227.53,227.47,24.027864]
[1733740575333,20.0,227.53,227.47,0.12549]
[1733740577840,6.3267,227.56,227.47,0.12549]
[1733740578042,6.3267,227.56,227.49,0.12549]
[1733740578460,0.66017683,227.55,227.4,0.65922037]
[1733740578666,0.66017683,227.55,227.41,23.776884]
[1733740578869,0.66017683,227.55,227.42,0.25098]
[1733740579177,6.3267,227.56,227.46,0.25098]
[1733740579471,6.3267,227.56,227.48,24.027864]
[1733740579648,6.3267,227.56,227.49,0.12549]
[1733740581943,6.3267,227.56,227.48,0.12549]
[1733740582252,6.3267,227.56,227.48,0.25098]
[1733740582451,6.3267,227.56,227.5,0.12549]
[1733740583450,6.3267,227.56,227.49,0.25098]
[1733740584063,6.3267,227.56,227.5,23.902374]
[1733740584257,1.6298,227.59,227.55,0.25098]
[1733740584558,6.0475,227.61,227.58,0.12549]
[1733740584756,6.0475,227.61,227.56,23.776884]
[1733740585169,6.0475,227.61,227.57,0.12549]
[1733740586038,0.66017683,227.6,227.57,0.12549]
[1733740587052,20.0,227.58,227.57,0.12549]
[1733740587471,6.0475,227.61,227.57,0.12549]
[1733740588271,6.0475,227.61,227.59,0.25098]
[1733740590080,1.5355,227.64,227.59,0.25098]
[1733740590289,21.5355,227.64,227.59,0.25098]
[1733740592288,6.5002,227.67,227.61,0.25098]
[1733740592490,6.5002,227.67,227.62,24.153354]
[1733740593067,1.629,227.69,227.65,0.12549]
[1733740594284,1.629,227.69,227.64,23.902374]
[1733740594967,0.66017683,227.68,227.64,23.902374]
[1733740595802,0.66017683,227.68,227.53,0.65891353]
[1733740596162,0.66017683,227.68,227.53,0.25098]
[1733740596365,0.66017683,227.68,227.55,0.25098]
[1733740596970,0.66017683,227.68,227.51,1.5719]
[1733740597193,0.66017683,227.68,227.52,0.6590434]
[1733740597488,0.66017683,227.68,227.53,0.25098]
[1733740597971,0.66017683,227.68,227.54,0.12549]
[1733740598369,2.39595821,227.68,227.54,0.12549]
[1733740598570,0.66017683,227.68,227.54,0.12549]
[1733740598774,6.1905,227.67,227.54,0.12549]
[1733740598977,20.0,227.64,227.54,0.12549]
[1733740599186,0.66017683,227.63,227.56,0.12549]
[1733740600662,20.0,227.64,227.56,0.12549]
[1733740600863,0.66017683,227.63,227.56,0.12549]
[1733740601313,20.0,227.64,227.56,0.12549]
[1733740601967,20.0,227.64,227.57,0.12549]
[1733740603399,0.66017683,227.63,227.57,0.12549]
[1733740603985,20.0,227.64,227.58,0.25098]
[1733740604171,20.0,227.64,227.6,0.12549]
[1733740604387,20.0,227.64,227.59,0.25098]
[1733740604565,20.0,227.64,227.6,0.12549]
[1733740605614,20.0,227.64,227.59,23.902374]
[1733740605820,0.66017683,227.63,227.59,23.902374]
[1733740605986,0.66017683,227.63,227.59,23.776884]
[1733740606920,6.85067683,227.67,227.6,23.902374]
[1733740607703,6.85067683,227.67,227.6,23.776884]
[1733740608189,20.0,227.64,227.6,23.776884]
[1733740609297,20.0,227.64,227.61,0.12549]
[1733740610696,6.1905,227.67,227.61,0.12549]
[1733740611426,6.1905,227.67,227.61,24.027864]
[1733740612891,21.629,227.69,227.66,0.12549]
[1733740613286,20.0,227.69,227.67,0.12549]
[1733740613524,6.1301,227.72,227.67,0.12549]
[1733740614807,6.1301,227.72,227.66,24.027864]
[1733740614997,6.1301,227.72,227.67,0.12549]
[1733740617089,20.0,227.69,227.66,23.902374]
[1733740618522,20.0,227.69,227.66,23.776884]
[1733740619320,20.0,227.69,227.67,0.12549]
[1733740619506,6.1301,227.72,227.67,0.25098]
[1733740620597,0.5115199,227.73,227.68,0.12549]
[1733740620939,0.5115199,227.73,227.69,0.25098]
[1733740621236,0.5115199,227.73,227.72,0.37647]
[1733740621403,0.5115199,227.73,227.72,24.153354]
[1733740622130,0.5115199,227.73,227.72,23.902374]
[1733740623298,0.5115199,227.73,227.72,23.776884]
[1733740623713,20.0,227.71,227.6,1.5273]
[1733740623911,20.0,227.71,227.61,0.65877099]
[1733740624107,20.0,227.71,227.61,0.25098]
[1733740625028,20.0,227.71,227.64,0.12549]
[1733740626230,0.66017683,227.7,227.64,0.12549]
[1733740627038,0.66017683,227.7,227.63,23.902374]
[1733740627199,2.16677683,227.7,227.57,0.65878151]
[1733740627598,2.16677683,227.7,227.58,0.25098]
[1733740627809,1.5066,227.7,227.6,0.25098]
[1733740628013,2.16677683,227.7,227.62,0.25098]
[1733740628341,1.5066,227.7,227.62,0.25098]
[1733740628504,1.5066,227.7,227.63,0.12549]
[1733740628829,2.16677683,227.7,227.63,0.12549]
[1733740629221,2.16677683,227.7,227.56,43.776884]
[1733740629429,2.16677683,227.7,227.57,0.12549]
[1733740629627,2.16677683,227.7,227.58,24.027864]
[1733740629935,2.16677683,227.7,227.6,24.153354]
[1733740631057,2.16677683,227.7,227.6,0.37647]
[1733740631342,2.16677683,227.7,227.6,24.153354]
[1733740631638,1.5066,227.7,227.6,24.153354]
[1733740631836,2.16677683,227.7,227.6,24.153354]
[1733740632503,2.16677683,227.7,227.6,0.37647]
[1733740632699,2.16677683,227.7,227.6,24.153354]
[1733740633828,2.16677683,227.7,227.6,1.03532644]
[1733740634037,2.16677683,227.7,227.62,0.37647]
[1733740635616,2.16677683,227.7,227.62,0.25098]
[1733740637148,1.5066,227.7,227.62,0.37647]
[1733740637433,1.5066,227.7,227.64,24.027864]
[1733740637634,1.5066,227.7,227.64,23.776884]
[1733740637836,0.66017683,227.69,227.64,23.776884]
[1733740638012,1.5066,227.7,227.64,23.776884]
[1733740638819,1.5066,227.7,227.65,0.12549]
[1733740639218,1.5066,227.7,227.65,0.25098]
[1733740639420,0.5115199,227.73,227.67,0.25098]
[1733740640633,20.0,227.71,227.67,0.12549]
[1733740641408,20.0,227.71,227.67,0.25098]
[1733740641611,20.0,227.71,227.69,0.12549]
[1733740641854,0.5115199,227.73,227.69,0.12549]
[1733740642139,0.5115199,227.73,227.71,0.25098]
[1733740642536,0.5115199,227.73,227.71,0.90955982]
[1733740642740,0.5115199,227.73,227.72,24.027864]
[1733740643439,0.5115199,227.73,227.72,24.153354]
[1733740644553,0.5115199,227.73,227.72,23.902374]
[1733740644931,0.5115199,227.73,227.72,23.776884]
[1733740646840,0.5115199,227.73,227.72,24.027864]
[1733740647664,0.5115199,227.73,227.72,24.153354]
[1733740648053,7.9909,227.89,227.74,0.12549]
[1733740648255,0.66017683,227.88,227.76,0.12549]
[1733740649269,20.0,227.86,227.76,0.12549]
[1733740649466,0.66017683,227.85,227.76,0.12549]
[1733740650038,0.66017683,227.85,227.77,0.25098]
[1733740651339,0.66017683,227.85,227.77,0.12549]
[1733740651541,0.66017683,227.85,227.76,23.776884]
[1733740652541,0.66017683,227.85,227.77,0.25098]
[1733740653746,0.66017683,227.85,227.76,23.776884]
[1733740654260,0.66017683,227.85,227.77,0.12549]
[1733740654472,0.66017683,227.85,227.77,0.25098]
[1733740654669,0.66017683,227.85,227.77,0.12549]
[1733740654965,0.66017683,227.85,227.77,0.25098]
[1733740656782,0.66017683,227.85,227.76,23.776884]
[1733740657142,0.66017683,227.85,227.77,0.25098]
[1733740658493,0.66017683,227.88,227.77,0.25098]
[1733740659651,20.0,227.86,227.77,0.25098]
[1733740659890,0.66017683,227.85,227.77,0.25098]
[1733740660091,0.66017683,227.85,227.72,1.5509]
[1733740660247,0.66017683,227.85,227.73,0.25098]
[1733740660446,0.66017683,227.85,227.75,0.25098]
[1733740661149,0.66017683,227.85,227.74,0.12549]
[1733740662361,0.66017683,227.85,227.76,24.027864]
[1733740663047,0.66017683,227.85,227.75,24.027864]
[1733740664285,0.66017683,227.85,227.75,0.25098]
[1733740664464,0.66017683,227.85,227.73,23.776884]
[1733740664649,0.66017683,227.85,227.74,0.25098]
[1733740665953,20.0,227.84,227.66,21.5509]
[1733740666166,0.66017683,227.83,227.67,0.65863703]
[1733740666565,0.66017683,227.83,227.68,0.12549]
[1733740666764,0.66017683,227.83,227.68,0.25098]
[1733740667489,0.66017683,227.83,227.71,0.12549]
[1733740667693,0.66017683,227.83,227.72,0.25098]
[1733740669798,6.4623,227.82,227.71,23.776884]
[1733740670091,20.0,227.79,227.63,20.0]
[1733740670300,0.66017683,227.78,227.64,0.25098]
[1733740670459,20.66017683,227.78,227.61,0.65868312]
[1733740670974,20.66017683,227.78,227.6,1.5428]
[1733740671288,20.66017683,227.78,227.61,0.90978406]
[1733740671964,20.66017683,227.78,227.63,0.37647]
[1733740676406,6.077,227.77,227.63,0.37647]
[1733740676693,20.0,227.74,227.63,0.37647]
[1733740676895,0.66017683,227.73,227.63,0.37647]
[1733740677084,0.66017683,227.73,227.62,22.053354]
[1733740678663,0.66017683,227.73,227.63,0.6587571]
[1733740679474,0.66017683,227.73,227.65,0.25098]
[1733740681809,0.66017683,227.73,227.65,0.12549]
[1733740681973,1.5051,227.72,227.62,23.776884]
[1733740682176,0.66017683,227.71,227.62,23.776884]
[1733740682604,0.66017683,227.71,227.63,0.12549]
[1733740682813,0.66017683,227.71,227.57,0.65883219]
[1733740683096,6.6659,227.7,227.56,0.65893527]
[1733740683300,0.66017683,227.69,227.56,0.65893527]
[1733740683471,0.66017683,227.69,227.57,20.0]
[1733740683670,20.0,227.67,227.56,0.65893527]
[1733740683911,20.0,227.67,227.52,6.2183]
[1733740683912,0.66017683,227.66,227.53,0.65898238]
[1733740684805,1.6256,227.65,227.5,2.23996873]
[1733740684981,20.0,227.61,227.5,0.65906873]
[1733740685683,20.0,227.61,227.51,0.25098]
[1733740686180,20.0,227.61,227.52,0.12549]
[1733740686383,20.0,227.61,227.53,24.027864]
[1733740686586,7.06317683,227.64,227.54,0.12549]
[1733740686902,1.6256,227.65,227.59,0.25098]
[1733740687100,6.403,227.69,227.62,0.12549]
[1733740687415,6.403,227.69,227.63,24.027864]
[1733740687781,6.403,227.69,227.63,23.776884]
[1733740690600,6.403,227.69,227.64,0.12549]
[1733740690915,6.403,227.69,227.64,0.37647]
[1733740692004,7.964,227.77,227.67,0.12549]
[1733740692223,0.66017683,227.76,227.67,0.12549]
[1733740692721,0.66017683,227.76,227.58,20.65872598]
[1733740692884,0.66017683,227.76,227.6,20.0]
[1733740693200,20.0,227.74,227.59,0.25098]
[1733740693407,0.66017683,227.73,227.59,0.25098]
[1733740694006,0.66017683,227.73,227.6,0.12549]
[1733740694312,0.66017683,227.73,227.61,24.027864]
[1733740694521,0.66017683,227.73,227.63,23.902374]
[1733740698027,0.66017683,227.73,227.65,0.12549]
[1733740703496,0.66017683,227.73,227.63,23.776884]
[1733740703808,20.0,227.69,227.59,0.65880363]
[1733740704112,20.0,227.69,227.51,15.9882]
[1733740704113,0.66017683,227.68,227.56,0.25098]
[1733740704291,0.66017683,227.68,227.58,0.25098]
[1733740705305,0.66017683,227.68,227.59,0.12549]
[1733740706027,0.66017683,227.68,227.56,23.776884]
[1733740706396,0.66017683,227.68,227.57,0.25098]
[1733740706618,0.66017683,227.68,227.57,0.12549]
[1733740706926,0.66017683,227.68,227.56,0.12549]
[1733740707225,6.1345,227.67,227.56,0.12549]
[1733740707422,6.1345,227.67,227.52,0.65901667]
[1733740707423,1.6133,227.65,227.55,0.12549]
[1733740707625,0.66017683,227.64,227.55,0.12549]
[1733740707793,0.66017683,227.64,227.55,0.37647]
[1733740708120,20.66017683,227.64,227.49,0.65904903]
[1733740709489,20.66017683,227.64,227.5,0.25098]
[1733740709721,20.66017683,227.64,227.5,0.12549]
[1733740709942,20.66017683,227.64,227.53,0.12549]
[1733740710241,1.6133,227.65,227.57,0.25098]
[1733740710439,1.6133,227.65,227.58,0.25098]
[1733740710812,0.66017683,227.64,227.58,0.12549]
[1733740711151,1.6133,227.65,227.58,0.25098]
[1733740711336,1.6133,227.65,227.58,24.153354]
[1733740712045,20.0,227.6,227.44,11.65048386]
[1733740712343,20.0,227.6,227.48,0.25098]
[1733740712541,20.0,227.6,227.5,0.25098]
[1733740713427,20.0,227.6,227.51,0.12549]
[1733740713735,20.0,227.6,227.53,0.12549]
[1733740714525,0.66017683,227.59,227.53,0.12549]
[1733740715407,6.0838,227.63,227.54,23.776884]
[1733740715608,6.0838,227.63,227.57,0.12549]
[1733740715822,6.0838,227.63,227.6,0.12549]
[1733740716022,6.0838,227.63,227.61,0.25098]
[1733740718047,1.6133,227.65,227.62,0.12549]
[1733740718237,6.2595,227.69,227.64,24.027864]
[1733740718976,6.2595,227.69,227.64,0.12549]
[1733740719332,6.2595,227.69,227.65,24.027864]
[1733740720945,6.2595,227.69,227.66,0.12549]
[1733740721664,6.2595,227.69,227.65,24.027864]
[1733740722257,6.2595,227.69,227.65,23.902374]
[1733740735187,6.2595,227.69,227.65,23.776884]
[1733740735568,0.66017683,227.68,227.65,23.776884]
[1733740736369,6.2595,227.69,227.65,23.776884]
[1733740736785,0.66017683,227.68,227.65,23.776884]
[1733740736990,6.2595,227.69,227.65,23.776884]
[1733740740080,0.66017683,227.68,227.65,23.776884]
[1733740743372,0.66017683,227.68,227.57,0.12549]
[1733740743871,0.66017683,227.68,227.58,0.25098]
[1733740744176,0.66017683,227.68,227.59,0.12549]
[1733740745277,0.66017683,227.68,227.6,0.25098]
[1733740745467,0.66017683,227.68,227.61,0.12549]
[1733740746990,20.0,227.66,227.6,0.12549]
[1733740747287,0.66017683,227.65,227.6,0.12549]
[1733740747584,20.0,227.66,227.6,0.37647]
[1733740747786,6.2595,227.69,227.61,0.25098]
[1733740747954,6.2595,227.69,227.62,0.25098]
[1733740748157,6.2595,227.69,227.63,0.25098]
[1733740748351,1.619,227.71,227.65,0.37647]
[1733740749391,20.0,227.72,227.67,0.12549]
[1733740749558,6.644,227.75,227.67,24.027864]
[1733740750178,6.644,227.75,227.69,0.25098]
[1733740750556,1.6591,227.78,227.69,0.25098]
[1733740751083,0.66017683,227.77,227.69,0.25098]
[1733740751488,0.66017683,227.77,227.7,0.25098]
[1733740751656,0.66017683,227.77,227.71,0.12549]
[1733740751856,0.66017683,227.77,227.7,23.776884]
[1733740751857,20.66017683,227.77,227.7,23.776884]
[1733740756802,20.66017683,227.77,227.61,2.28352977]
[1733740756803,20.66017683,227.77,227.61,1.6248]
[1733740757003,20.66017683,227.77,227.62,8.82104616]
[1733740757207,20.66017683,227.77,227.65,0.25098]
[1733740757391,20.66017683,227.77,227.65,9.07187704]
[1733740757713,20.0,227.77,227.67,0.25098]
[1733740758000,20.0,227.77,227.69,24.027864]
[1733740758170,22.18977683,227.83,227.72,0.12549]
[1733740758790,23.98023262,227.83,227.72,0.12549]
[1733740758995,22.18977683,227.83,227.73,24.027864]
[1733740759310,6.0478,227.86,227.76,0.12549]
[1733740759311,0.66017683,227.85,227.76,0.12549]
[1733740760600,0.66017683,227.85,227.78,0.12549]
[1733740760906,20.0,227.83,227.78,0.12549]
[1733740761068,0.66017683,227.82,227.75,0.12549]
[1733740762067,0.66017683,227.82,227.76,0.12549]
[1733740762406,20.0,227.83,227.77,0.12549]
[1733740762978,20.0,227.83,227.76,0.12549]
[1733740763371,20.0,227.83,227.75,0.12549]
[1733740765310,0.66017683,227.82,227.75,0.12549]
[1733740766409,20.0,227.83,227.75,0.12549]
[1733740770885,0.66017683,227.82,227.75,0.12549]
[1733740771211,20.0,227.83,227.75,0.12549]
[1733740774603,6.0478,227.86,227.78,0.12549]
[1733740774921,0.66017683,227.85,227.78,0.12549]
[1733740779123,0.66017683,227.85,227.8,0.12549]
[1733740781993,0.66017683,227.85,227.79,0.25098]
[1733740782824,0.66017683,227.85,227.78,23.776884]
[1733740783043,0.66017683,227.85,227.71,28.16223234]
[1733740783222,20.0,227.83,227.74,0.12549]
[1733740783390,20.0,227.83,227.74,0.25098]
[1733740783596,0.66017683,227.82,227.74,0.25098]
[1733740784227,20.0,227.83,227.76,0.25098]
[1733740784392,0.66017683,227.82,227.76,0.25098]
[1733740786044,0.66017683,227.82,227.76,0.12549]
[1733740787651,0.66017683,227.82,227.66,8.16223234]
[1733740787951,0.66017683,227.82,227.69,0.25098]
[1733740788779,0.66017683,227.82,227.67,8.16223234]
[1733740788954,0.66017683,227.82,227.7,0.12549]
[1733740790446,0.66017683,227.82,227.7,0.37647]
[1733740792743,0.66017683,227.82,227.7,0.25098]
[1733740792744,20.0,227.78,227.7,0.25098]
[1733740792939,0.66017683,227.77,227.63,8.16223234]
[1733740793138,0.66017683,227.77,227.64,0.12549]
[1733740793840,0.66017683,227.77,227.65,0.25098]
[1733740794040,0.66017683,227.77,227.67,0.25098]
[1733740794347,0.66017683,227.77,227.67,24.027864]
[1733740795067,20.0,227.78,227.7,0.12549]
[1733740795270,0.66017683,227.77,227.7,0.12549]
[1733740795572,20.0,227.78,227.7,0.12549]
[1733740795781,0.66017683,227.77,227.7,0.12549]
[1733740796870,0.66017683,227.77,227.63,8.16223234]
[1733740797372,0.66017683,227.77,227.65,8.16223234]
[1733740797535,1.5299,227.76,227.62,2.30974554]
[1733740797742,0.66017683,227.75,227.63,8.16223234]
[1733740798047,0.66017683,227.75,227.62,10.47197788]
[1733740798777,0.66017683,227.75,227.63,24.153354]
[1733740800083,6.4016,227.74,227.63,24.153354]
[1733740800287,0.66017683,227.73,227.63,24.153354]
[1733740801869,0.66017683,227.73,227.63,0.37647]
[1733740803280,20.0,227.71,227.63,0.37647]
[1733740806078,0.66017683,227.7,227.63,0.25098]
[1733740806286,20.0,227.71,227.64,0.12549]
[1733740806977,20.0,227.71,227.66,0.12549]
[1733740809302,6.4016,227.74,227.68,0.12549]
[1733740809794,1.5299,227.76,227.7,0.12549]
[1733740809957,6.3973,227.79,227.72,0.12549]
[1733740812463,0.66017683,227.78,227.71,0.12549]
[1733740812690,0.66017683,227.78,227.66,8.16223234]
[1733740812901,0.66017683,227.78,227.68,0.25098]
[1733740813755,0.66017683,227.78,227.69,0.12549]
[1733740814781,6.3973,227.79,227.71,0.25098]
[1733740815496,6.3973,227.79,227.73,0.12549]
[1733740816195,6.3973,227.79,227.73,0.25098]
[1733740816395,0.66017683,227.78,227.73,0.12549]
[1733740816892,0.66017683,227.78,227.72,23.776884]
[1733740817657,20.0,227.76,227.72,23.776884]
[1733740818377,0.66017683,227.75,227.72,23.776884]
[1733740820668,1.5012,227.74,227.61,0.65871714]
[1733740820870,0.66017683,227.73,227.61,8.82094948]
[1733740821256,0.66017683,227.73,227.62,8.41321234]
[1733740821885,0.66017683,227.73,227.62,8.16223234]
[1733740822087,0.66017683,227.73,227.63,23.776884]
[1733740822392,0.66017683,227.73,227.64,0.25098]
[1733740822962,6.3973,227.79,227.7,8.41321234]
[1733740823168,6.3973,227.79,227.74,0.12549]
[1733740823865,6.3973,227.79,227.73,0.25098]
[1733740826868,6.3973,227.79,227.72,0.12549]
[1733740827368,0.66017683,227.78,227.72,0.12549]
[1733740827568,6.3973,227.79,227.72,0.12549]
[1733740827867,0.66017683,227.78,227.69,23.776884]
[1733740828066,0.66017683,227.78,227.7,0.12549]
[1733740828599,20.0,227.76,227.69,23.776884]
[1733740828903,20.0,227.76,227.65,8.16223234]
[1733740829797,20.0,227.76,227.66,0.25098]
[1733740830007,20.0,227.76,227.67,0.12549]
[1733740831297,0.66017683,227.75,227.67,0.12549]
[1733740832411,20.0,227.76,227.69,0.37647]